Workbook

Sheet 1. Forside
A1: HOFOR Spildevand Herlev A/S
D8: Bilag A
D13: Indholdsfortegnelse
C16: Fane nr. 2 | D16: Samlet prisloft
C17: Fane nr. 3 | D17: Driftsomkostninger
C18: Fane nr. 4 | D18: Historiske investeringer
C19: Fane nr. 5 | D19: Gennemførte investeringer
C20: Fane nr. 6 | D20: Korrektion investeringer
C21: Fane nr. 7 | D21: Planlagte investeringer
C22: Fane nr. 8 | D22: 1:1 omkostninger
C23: Fane nr. 9 | D23: Miljø- og servicemål
C24: Fane nr. 10 | D24: Klimatilpasning
C25: Fane nr. 11 | D25: Nettofinansielle poster
C26: Fane nr. 12 | D26: Over- eller underdækning
C27: Fane nr. 13 | D27: Kontrol med indtægtsrammen og oversigt over ekstraordinære effektiviseringsgevinster

Sheet 2. Samlet prisloft
A1: ='1. Forside'!A1 -> HOFOR Spildevand Herlev A/S
B4: Fane 2. Samlet prisloft for 2015
B6: Driftsomkostninger
B7: Driftsomkostninger i prisloftet for 2014 | C7: ='3. Driftsomkostninger'!C19 -> 11932836.44 | D7: kr.
B8: Bortfald af væsentlige omkostninger | C8: =-'3. Driftsomkostninger'!C24 -> 0 | D8: kr.
B9: Korrektion for prisudviklingen 2014-2015 | C9: ='3. Driftsomkostninger'!C30 -> 9546.269152 | D9: kr.
B10: Forhøjelse til effektivt niveau iht. benchmarkingen | C10: ='3. Driftsomkostninger'!C36 -> 0 | D10: kr.
B11: Korrektion for generelt effektiviseringskrav | C11: =-'3. Driftsomkostninger'!C42 -> -52504.48034 | D11: kr.
B12: Korrektion for individuelt effektiviseringskrav | C12: =-'3. Driftsomkostninger'!C51 -> -596641.822 | D12: kr.
B13: Driftsomkostninger i alt | C13: =SUM(C7:C12) -> 11293236.41 | D13: kr. | E13: =C13 -> 11293236.41 | F13: kr.
B14: Investeringer
B15: Tillæg for historiske investeringer | C15: ='4. Historiske investeringer'!C9 -> 13844874.59 | D15: kr.
B16: Tillæg for gennemførte investeringer i 2011-2013 | C16: ='5. Gennemførte investeringer'!F19 -> 556275.78 | D16: kr.
B17: Korrektion af tillæg for planlagte investeringer vedrørende 2013 | C17: ='6. Korrektion investeringer'!C10 -> 71966.22667 | D17: kr.
B18: Tillæg for planlagte investeringer i 2014 og 2015 | C18: ='7. Planlagte investeringer'!F25 -> 444702.6667 | D18: kr.
B19: Investeringstillæg i alt | C19: =SUM(C15:C18) -> 14917819.26 | D19: kr. | E19: =C19 -> 14917819.26 | F19: kr.
B20: Øvrige omkostninger mv.
B21: Tillæg for 1:1 omkostninger i 2015 | C21: ='8. 1-1 omkostninger'!C11 -> 12746206 | D21: kr.
B22: Tillæg vedr. revisorerklæringer og DANVA/FVD-kontingent | C22: ='8. 1-1 omkostninger'!C19 -> 55000 | D22: kr.
B23: Korrektion ift. faktiske 1:1 omkostninger i 2013 | C23: ='8. 1-1 omkostninger'!C25 -> 3522133 | D23: kr.
B24: Tillæg for driftsomkostninger til miljø- og servicemål i 2015 | C24: ='9. Miljø- og servicemål'!C10 -> 285000 | D24: kr.
B25: Korrektion ift. faktiske driftsomkostninger til miljø- og servicemål i 2013 | C25: ='9. Miljø- og servicemål'!C17 -> 0 | D25: kr.
B26: Tillæg for driftsomkostninger til medfinansiering af klimatilpasningsprojekter i 2015 | C26: ='10. Klimatilpasning'!C9 -> 0 | D26: kr.
B27: Korrektion ift. faktiske omkostninger til medfinansiering af klimatilpasningsprojekter i 2013 | C27: ='10. Klimatilpasning'!C16 -> 0 | D27: kr.
B28: Tillæg/fradrag for nettofinansielle poster i 2015 | C28: ='11. Nettofinansielle poster'!C9 -> 626000 | D28: kr.
B29: Korrektion ift. faktiske nettofinansielle poster i 2013 | C29: ='11. Nettofinansielle poster'!C16 -> -11607 | D29: kr.
B30: Øvrige omkostninger mv. i alt | C30: =SUM(C21:C29) -> 17222732 | D30: kr. | E30: =C30 -> 17222732 | F30: kr.
B31: Historisk over- eller underdækning
B32: Tillæg/fradrag for over- eller underdækning til og med 2010 | C32: ='12. Over- eller underdækning'!C11 -> -3258500.876 | D32: kr. | E32: =C32 -> -3258500.876 | F32: kr.
B33: Korrektion i forhold til tidligere indtægtsramme
B34: Korrektion for overholdelse af indtægtsramme i prisloft 2013 | C34: ='13. Kontrol med indtægtsrammen'!E27 -> 1250859.971 | D34: kr. | E34: =C34 -> 1250859.971 | F34: kr.
B35: Samlet prisloft
B36: Indtægtsramme i 2015 | E36: =SUM(E13:E34) -> 41426146.77 | F36: kr.
B37: Debiteret vandmængde i 2013 | E37: 1426760 | F37: m3
B38: Prisloft 2015 | E38: =E36/E37 -> 29.03511927 | F38: kr./m3

Sheet 3. Driftsomkostninger
A1: ='1. Forside'!A1 -> HOFOR Spildevand Herlev A/S
B4: Fane 3. Driftsomkostninger
B6: Driftsomkostningerne i prisloftet for 2014
B7: Korrigerede driftsomkostninger i prisloftet for 2013 (DOiPL 2013) | C7: 12167891.38 | D7: kr.
B8: Prisfremskrivning 1,5 pct. | C8: =0.015*SUM(C7:C7) -> 182518.3707 | D8: kr.
B9: Generelt effektiviseringskrav (0 pct.) | C9: 0 | D9: kr.
B10: Individuelt effektiviseringskrav | C10: -608394.5689 | D10: kr.
B11: Tillæg i henhold til § 8, stk. 2, pkt. 1 | C11: 1236160.24 | D11: kr.
B12: Driftsomkostningerne i prisloftet for 2014 (DOiPL 2014) | C12: =SUM(C7:C11) -> 12978175.42 | D12: kr.
B15: Forskel i § 8, stk. 2, pkt. 1 - tillæg
B16: Godkendt tillæg i PL2014 angivet i 2014-niveau | C16: 1236160.24 | D16: kr.
B17: Godkendt tillæg i PL2015 angivet i 2014-niveau | C17: 190821.2593 | D17: kr.
B18: Forskel | C18: =C17-C16 -> -1045338.981 | D18: kr.
B19: Korrigerede driftsomkostninger i prisloftet for 2014 | C19: =C12+C18 -> 11932836.44 | D19: kr.
B22: Korrektion for forventet bortfald af væsentlige omkostninger
B23: Selskabets indberettede bortfald af væsentlige omkostninger inden 2015 | C23: 0 | D23: kr.
B24: Korrektion for forventet bortfald | C24: =SUM(C23:C23) -> 0 | D24: kr.
B27: Korrektion for prisudviklingen fra 2014-2015
B28: Driftsomkostningerne i prisloftet for 2014 | C28: =C19-C24 -> 11932836.44 | D28: kr.
B29: Prisudvikling 2014 - 2015 | C29: 0.08 | D29: pct.
B30: Korrektion for prisudvikling | C30: =C28*(C29/100) -> 9546.269152 | D30: kr.
B33: Eventuel forhøjelse til effektivt niveau iht. benchmarkingen
B34: Selskabets effektive driftsomkostninger iht. benchmarkingen | C34: 5026110.709 | D34: kr.
B35: Selskabets pristalskorrigerede driftsomkostninger i 2015-niveau | C35: =C28+C30 -> 11942382.71 | D35: kr.
B36: Eventuel forhøjelse til effektivt niveau | C36: =IF(C35>C34,0,C34-C35) -> 0 | D36: kr.
B39: Korrektion for generelt effektiviseringskrav
B40: Driftsomkostningerne i prisloftet for 2014 | C40: =C28 -> 11932836.44 | D40: kr.
B41: Generelt effektiviseringskrav | C41: 0.44 | D41: pct.
B42: Endeligt generelt effektiviseringskrav | C42: =C40*(C41/100) -> 52504.48034 | D42: kr.
B45: Korrektion for individuelt effektiviseringskrav
B46: Rå effektiviseringspotentiale | C46: 6972356.332 | D46: kr.
B47: Effektiviseringspotentiale efter eventuel korrektion for særlige forhold | C47: 6906725.731 | D47: kr.
B48: Effektiviseringspotentiale efter forsigtighedshensyn | C48: 5410348.042 | D48: kr.
B49: Effektiviseringspotentiale efter eventuel korrektion for sammensætning af signifikante costdrivere | C49: 5410348.042 | D49: kr.
B50: Umiddelbart effektiviseringskrav | C50: =C49/4 -> 1352587.01 | D50: kr.
B51: Endeligt individuelt effektiviseringskrav | C51: =IF(C50>0.05*C28,0.05*C28,IF(C50<0.01*C28,0,C50)) -> 596641.822 | D51: kr.

Sheet 4. Historiske investeringer
A1: ='3. Driftsomkostninger'!A1 -> HOFOR Spildevand Herlev A/S
B4: Fane 4. Historiske investeringer
B6: Tillæg for historiske investeringer
B7: Værdi af selskabets materielle anlægsaktiver pr. 1. januar 2010 | C7: 431340145.9 | D7: kr.
B8: Den årlige standardafskrivning på de materielle anlægsaktiver iht. POLKA | C8: 13844874.59 | D8: kr.
B9: Tillæg i alt i 2015 | C9: =C8 -> 13844874.59 | D9: kr.

Sheet 5. Gennemførte investeringer
A1: ='4. Historiske investeringer'!A1 -> HOFOR Spildevand Herlev A/S
B4: Fane 5. Gennemførte investeringer i 2010 - 2013
B6: Tillæg for gennemførte investeringer i 2013
B7: Beskrivelse af investeringen | C7: Årstal | D7: Std. levetid (år) | E7: Anskaffelses-pris (kr.) | F7: Afskrivning
B8: Administrationbygninger | C8: 2013 | D8: 75 | E8: 49490 | F8: =E8/D8 -> 659.8666667 | G8: kr.
B9: Forsinkelsesbassiner, lukkede med automatisk rensning og SRO Miljøklasse A (1.000-3.000 m3) - Konstruktioner | C9: 2013 | D9: 75 | E9: 809221 | F9: =E9/D9 -> 10789.61333 | G9: kr.
B10: Pumpeinstallation Miljøklasse A (1.000-1.500 l/s) - Mek/EL | C10: 2013 | D10: 20 | E10: 7319 | F10: 365.95 | G10: kr.
B11: Pumpestationer m. overbygning (< 20 m2), Konstruktioner | C11: 2013 | D11: 50 | E11: 41394 | F11: 827.88 | G11: kr.
B12: Pumpestationer m. overbygning (< 20 m2), Mek/EL | C12: 2013 | D12: 20 | E12: 527087 | F12: 26354.35 | G12: kr.
B13: Pumpestationer m. overbygning (< 20 m2), SRO | C13: 2013 | D13: 10 | E13: 880928 | F13: 88092.8 | G13: kr.
B14: Stik | C14: 2013 | D14: 75 | E14: 364595 | F14: 4861.266667 | G14: kr.
B15: Strømpeforing Ø 500 mm < Ledningsnet = Ø 800 mm | C15: 2013 | D15: 50 | E15: 3031438 | F15: 60628.76 | G15: kr.
B16: Ø 200 mm < Ledningsnet = Ø 500 mm | C16: 2013 | D16: 75 | E16: 1242197 | F16: 16562.62667 | G16: kr.
B17: Tillæg for 2013 | F17: =SUM(F8:F16) -> 209143.1133 | G17: kr.
B18: Tillæg for 2010 - 2012 | F18: 347132.6667 | G18: kr.
B19: Samlet tillæg for gennemførte investeringer | F19: =F17+F18 -> 556275.78 | G19: kr.

Sheet 6. Korrektion investeringer
A1: ='5. Gennemførte investeringer'!A1 -> HOFOR Spildevand Herlev A/S
B4: Fane 6. Korrektion af tillæg for planlagte investeringer
B6: Korrektion af tillæg for planlagte investeringer vedr. 2013
B7: Tillæg for planlagte investeringer i 2013 i prisloft 2013 | C7: 0 | D7: kr.
B8: Tillæg for planlagte investeringer i 2013 i prisloft 2014 | C8: 346320 | D8: kr.
B9: Selskabets faktiske afskrivninger på gennemførte investeringer i 2013 | C9: ='5. Gennemførte investeringer'!F17 -> 209143.1133 | D9: kr.
B10: Korrektion af tillæg for planlagte investeringer vedr. 2013 | C10: =C9-C7+C9-C8 -> 71966.22667 | D10: kr.

Sheet 7. Planlagte investeringer
A1: ='6. Korrektion investeringer'!A1 -> HOFOR Spildevand Herlev A/S
B4: Fane 7. Planlagte investeringer
B6: Tillæg for planlagte investeringer i 2014 og 2015
B7: Beskrivelse af investeringen | C7: Årstal | D7: Std. levetid (år) | E7: Anskaffelses-pris (kr.) | F7: Afskrivning
B8: Forsinkelsesbassiner, lukkede med automatisk rensning og SRO Miljøklasse A (1.000-3.000 m3) - Konstruktioner | C8: 2014 | D8: 75 | E8: 3300000 | F8: =E8/D8 -> 44000 | G8: kr.
B9: Forsinkelsesbassiner, lukkede med automatisk rensning og SRO Miljøklasse A (1.000-3.000 m3) - Mek/EL | C9: 2014 | D9: 20 | E9: 500000 | F9: =E9/D9 -> 25000 | G9: kr.
B10: Installationer "ingen eller faste riste" (mindre end 7 m2) | C10: 2014 | D10: 20 | E10: 250000 | F10: =E10/D10 -> 12500 | G10: kr.
B11: Pumpestationer m. overbygning (< 20 m2), Mek/EL | C11: 2014 | D11: 20 | E11: 250000 | F11: 12500 | G11: kr.
B12: Ø 200 mm < Ledningsnet = Ø 500 mm | C12: 2014 | D12: 75 | E12: 9300000 | F12: 124000 | G12: kr.
B13: Stik | C13: 2014 | D13: 75 | E13: 200000 | F13: 2666.666667 | G13: kr.
B14: Strømpeforing Ø 200 mm < Ledningsnet = Ø 500 mm | C14: 2014 | D14: 50 | E14: 1800000 | F14: 36000 | G14: kr.
B15: Kælder | C15: 2015 | D15: 75 | E15: 2250000 | F15: 30000 | G15: kr.
B16: Ledningsnet > Ø 1600 mm (rørbassiner og transportledninger) | C16: 2015 | D16: 75 | E16: 1080000 | F16: 14400 | G16: kr.
B17: Pumpeinstallation Miljøklasse B (1.000-1.500 l/s) - Mek/EL | C17: 2015 | D17: 20 | E17: 225000 | F17: 11250 | G17: kr.
B18: Pumpeinstallation Miljøklasse B (1.000-1.500 l/s) - SRO | C18: 2015 | D18: 10 | E18: 197084 | F18: 19708.4 | G18: kr.
B19: GIS datasystem | C19: 2015 | D19: 5 | E19: 129600 | F19: 25920 | G19: kr.
B20: Stik | C20: 2015 | D20: 75 | E20: 180000 | F20: 2400 | G20: kr.
B21: Ø 1200 mm < Ledningsnet = Ø 1600 mm | C21: 2015 | D21: 75 | E21: 6185225 | F21: 82469.66667 | G21: kr.
B22: Ø 1200 mm < Ledningsnet = Ø 1600 mm | C22: 2015 | D22: 75 | E22: 141595 | F22: =E22/D22 -> 1887.933333 | G22: kr.
B23: Tillæg for 2014 | F23: =SUMIF(C8:C22,"2014",F8:F22) -> 256666.6667 | G23: kr.
B24: Tillæg for 2015 | F24: =SUMIF(C8:C22,"2015",F8:F22) -> 188036 | G24: kr.
B25: Tillæg i alt | F25: =F23+F24 -> 444702.6667 | G25: kr.

Sheet 8. 1-1 omkostninger
A1: ='7. Planlagte investeringer'!A1 -> HOFOR Spildevand Herlev A/S
B4: Fane 8. 1:1 omkostninger
B6: Tillæg for budgetterede 1:1 omkostninger i 2015
B7: Betaling til Forsyningssekretariatet | C7: 33000 | D7: kr.
B8: Køb af varer og tjenesteydelser hos et andet prisloftreguleret vandselskab | C8: 11063206 | D8: kr.
B9: Selskabsskat | C9: 1000000 | D9: kr.
B10: Ejendomsskatter | C10: 650000 | D10: kr.
B11: Tillæg i alt | C11: =SUM(C7:C10) -> 12746206 | D11: kr.
B16: Tillæg for budgetterede nødvendige udgifter til revisorerklæringer samt ordinært medlemskab af DANVA og FVD i 2015
B17: Betaling for ordinært medlemskab af DANVA/FVD | C17: 40000 | D17: kr.
B18: Betaling for revisorerklæringer | C18: 15000 | D18: kr.
B19: Tillæg i alt | C19: =SUM(C17:C18) -> 55000 | D19: kr.
B22: Korrektion af tillæg for faktiske 1:1 omkostninger (inkl. revisorerklæringer og ordinært medlemskab af DANVA/FVD) i 2013
B23: Selskabets faktiske 1:1 omkostninger mv. i 2013, jf. reguleringsregnskabet | C23: 15896633 | D23: kr.
B24: Tillæg for budgetterede 1:1 omkostninger mv. i prisloft 2013 | C24: 12374500 | D24: kr.
B25: Korrektion af tillæg for budgetterede 1:1 omkostninger mv. i 2013 | C25: =C23-C24 -> 3522133 | D25: kr.

Sheet 9. Miljø- og servicemål
A1: ='8. 1-1 omkostninger'!A1 -> HOFOR Spildevand Herlev A/S
B4: Fane 9. Driftsomkostninger til miljø- og servicemål
B6: Tillæg for budgetterede driftsomkostninger til miljø- og servicemål i 2015
B7: Dokumenteret Drikkevandssikkerhed (DDS) | C7: 70000 | D7: kr.
B8: Vand- og Energiværksted | C8: 85000 | D8: kr.
B9: Overtagelse af private ledninger | C9: 130000 | D9: kr.
B10: Tillæg i alt | C10: =SUM(C7:C9) -> 285000 | D10: kr.
B14: Korrektion af tillæg for faktiske driftsomkostninger til miljø- og servicemål i 2013
B15: Selskabets faktiske driftsomkostninger til miljø- og servicemål i 2013, jf. reguleringsregnskabet | C15: 0 | D15: kr.
B16: Tillæg for budgetterede driftsomkostninger til miljø- og servicemål i prisloft 2013 | C16: 0 | D16: kr.
B17: Korrektion af tillæg for budgetterede driftsomkostninger til miljø- og servicemål i 2013 | C17: =C15-C16 -> 0 | D17: kr.

Sheet 10. Klimatilpasning
A1: ='9. Miljø- og servicemål'!A1 -> HOFOR Spildevand Herlev A/S
B4: Fane 10. Medfinansiering af klimatilpasningsprojekter
B7: Tillæg for budgetterede omkostninger til medfinansiering af klimatilpasningsprojekter i 2015
C8: 0 | D8: kr.
B9: Tillæg i alt | C9: =SUM(C8:C8) -> 0 | D9: kr.
B13: Korrektion af tillæg for faktiske omkostninger til medfinansiering af klimatilpasningsprojekter i 2013
B14: Selskabets faktiske driftsomkostninger til klimatilpasningsprojekter i 2013, jf. reguleringsregnskabet | C14: 0 | D14: kr.
B15: Tillæg for budgetterede driftsomkostninger til klimatilpasningsprojekter i prisloft 2013 | C15: 0 | D15: kr.
B16: Korrektion af tillæg for budgetterede omkostninger til klimatilpasningsprojekter i 2013 | C16: =C14-C15 -> 0 | D16: kr.

Sheet 11. Nettofinansielle poster
A1: ='10. Klimatilpasning'!A1 -> HOFOR Spildevand Herlev A/S
B4: Fane 11. Nettofinansielle poster
B6: Tillæg for budgetterede nettofinansielle poster i 2015
B7: Budgetterede renteudgifter og gebyrer i 2015 | C7: 656000 | D7: kr.
B8: Budgetterede renteindtægter i 2015 | C8: 30000 | D8: kr.
B9: Tillæg/fradrag i alt | C9: =C7-C8 -> 626000 | D9: kr.
B13: Korrektion af tillæg for faktiske nettofinansielle poster i 2013
B14: Selskabets faktiske nettofinansielle poster i 2013, jf. reguleringsregnskabet | C14: 223393 | D14: kr.
B15: Tillæg for budgetterede nettofinansielle poster i prisloft 2013 | C15: 235000 | D15: kr.
B16: Korrektion af tillæg for budgetterede nettofinansielle poster i 2013 | C16: =C14-C15 -> -11607 | D16: kr.

Sheet 12. Over- eller underdækning
A1: ='11. Nettofinansielle poster'!A1 -> HOFOR Spildevand Herlev A/S
B4: Fane 12. Over- eller underdækning til og med 2010
B6: Tillæg/fradrag for over- eller underdækning til og med 2010
B7: Opgjort over- eller underdækning per 31. december 2010 | C7: -33431479 | D7: kr.
B8: Heraf beløb indregnet i prislofterne for 2011 - 2014 | C8: -13880473.75 | D8: kr.
B9: Endnu ikke indregnet over- eller underdækning | C9: =C7-C8 -> -19551005.25 | D9: kr.
B10: Resterende indregningsperiode (fastsat i prisloftet for 2012) | C10: 6 | D10: år
B11: Tillæg/fradrag i alt | C11: =IF(C7=0,0,C9/C10) -> -3258500.876 | D11: kr.

Sheet 13. Kontrol med indtægtsrammen
A1: ='12. Over- eller underdækning'!A1 -> HOFOR Spildevand Herlev A/S
B4: Fane 13. Korrektion for overholdelse af indtægtsrammen i prisloftet for 2013
B6: Samlet opgørelse vedrørende overholdelse af indtægtsrammen i prisloftet for 2013
B7: Indtægtsramme i prisloftet for 2013 | E7: 38274209.97 | F7: kr.
B8: Ikke anvendt likviditet vedrørende investeringer i 2013
B9: Tillæg for historiske investeringer | C9: 14184874.59 | D9: kr.
B10: Tillæg for gennemførte investeringer i 2011 | C10: 899830 | D10: kr.
B11: Korrektion af tillæg for planlagte investeringer i 2011 | C11: -260555 | D11: kr.
B12: Tillæg for planlagte investeringer i 2012 og 2013 | C12: 666167 | D12: kr.
B13: Indtægter fra tilslutningsbidrag | C13: 0 | D13: kr.
B14: Indtægter fra salg af anlægsaktiver | C14: 0 | D14: kr.
B15: Erstatninger vedr. anlægsaktiver mv. | C15: 0 | D15: kr.
B16: Ekstraordinær effektiviseringsgevinst anvendt til investeringer | C16: 0 | D16: kr.
B17: Udgifter til investeringer | C17: -15490317 | D17: kr.
B18: Ikke anvendt likviditet vedr. investeringer i alt | C18: =SUM(C9:C17) -> -0.408404341 | D18: kr. | E18: =IF(C18<0,0,-C18) -> 0 | F18: kr.
B19: Ekstraordinære effektiviseringsgevinster anvendt til takstnedsættelse
B20: Ekstraordinær effektiviseringsgevinst anvendt til takstnedsættelse | C20: 0 | D20: kr. | E20: =-C20 -> 0 | F20: kr.
B21: Korrektion af ikke opkrævet tillæg fra 2011 i prisloft 2013
B22: Korrektion af ikke opkrævet tillæg fra 2011 i prisloft 2013 | C22: 0 | D22: kr. | E22: =-C22 -> 0 | F22: kr.
B23: Indtægter fra primære aktiviteter mv.
B24: Indtægter fra kubikmetertakster, faste takster, særbidrag, målergebyrer samt andre takster og gebyrer | C24: 37023350 | D24: kr.
B25: Andre indtægter i prisloftåret, som selskabet har opnået i forbindelse med eller som følge af selskabets primære aktiviteter | C25: 0 | D25: kr.
B26: Indtægter fra primære aktiviteter mv. i alt | C26: =SUM(C24:C25) -> 37023350 | D26: kr. | E26: =-C26 -> -37023350 | F26: kr.
B27: Tillæg/fradrag i prisloftet for 2015 i alt | E27: =E7+E18+E20+E22+E26 -> 1250859.971 | F27: kr.
B31: Oversigt over ekstraordinære effektiviseringsgevinster
C33: 2012 | E33: 2013 | G33: 2014 | I33: 2015 | K33: 2016
B34: Indhentet ekstraordinær effektiviseringsgevinst | C34: 0 | D34: kr. | E34: 4792322 | F34: kr. | H34: kr. | J34: kr. | L34: kr.
B35: Gevinst anvendt til investeringer | C35: 0 | D35: kr. | E35: 0 | F35: kr. | H35: kr. | J35: kr. | L35: kr.
B36: Gevinst anvendt til takstnedsættelse | C36: 0 | D36: kr. | E36: 0 | F36: kr. | H36: kr. | J36: kr. | L36: kr.
B37: Korrektion for effektiviseringsgevinst der ikke er anvendt inden 4 år | C37: 0 | D37: kr. | E37: 0 | F37: kr. | H37: kr. | J37: kr. | K37: =IF(C38>SUM(E35:I36),C38-SUM(E35:I36),0)*-1 -> 0 | L37: kr.
B38: Resterende gevinst | C38: =C34-C35-C36 -> 0 | D38: kr. | E38: =C38+E34-E35-E36 -> 4792322 | F38: kr. | G38: =E38+G34-G35-G36 -> 4792322 | H38: kr. | I38: =G38+I34-I35-I36 -> 4792322 | J38: kr. | K38: =K34-K35-K36+K37+I38 -> 4792322 | L38: kr.
